fUST/lending_fUST_20240802
["ID","MTS","AMOUNT","RATE_DAILY","PERIOD"]
[333855362,1722569447296,-500.0,0.00013698,2]
[333855363,1722569447305,-500.0,0.00013698,2]
[333855364,1722569447316,-500.0,0.00013698,2]
[333855365,1722569447326,-500.0,0.00013698,2]
[333855366,1722569447336,-500.0,0.00013698,2]
[333855367,1722569447346,-500.0,0.00013698,2]
[333855368,1722569447358,-607.16,0.00013698,2]
[333855369,1722569447370,-500.0,0.00013698,2]
[333855370,1722569447380,-500.0,0.00013698,2]
[333855371,1722569447389,-237.38540287,0.00013698,2]
[333855388,1722569740618,151.0,0.00027,120]
[333855389,1722569869400,1016.99,0.00027,120]
[333855392,1722570395491,154.65203293,0.00027,120]
[333855393,1722570502376,354.9261337,0.00027,120]
[333855400,1722570514505,181.79988935,9.999e-05,2]
[333855452,1722570631907,-161.175653,0.00012986,2]
[333855454,1722570631917,-495.73313516,0.00013,2]
[333855456,1722570631931,-504.26686484,0.00013,2]
[333855468,1722570632048,-2005.61079516,0.00013589,2]
[333855471,1722570632062,-178.10847714,0.00013598,2]
[333855472,1722570632071,-5611.30786658,0.0001366,2]
[333855474,1722570632082,-178.10847711,0.00013667,2]
[333855476,1722570632091,-23660.879977,0.00013688,2]
[333855478,1722570632102,-2602.91297133,0.00013689,2]
[333855537,1722570637959,-1847.64465184,0.00013689,2]
[333855543,1722570637971,-7379.88236533,0.00013689,2]
[333855544,1722570637981,-367.80729453,0.00013689,2]
[333855546,1722570637994,-1410.0,0.00013694,2]
[333855548,1722570638005,-500.0,0.00013696,2]
[333855550,1722570638015,-500.0,0.00013697,2]
[333855553,1722570638024,-500.0,0.00013697,2]
[333855555,1722570638035,-500.0,0.00013697,2]
[333855557,1722570638045,-500.0,0.00013697,2]
[333855558,1722570638054,-500.0,0.00013697,2]
[333855559,1722570638066,-500.0,0.00013697,2]
[333855560,1722570638075,-11575.72599291,0.00013698,5]
[333855561,1722570638085,-151.0,0.00013698,2]
[333855562,1722570638095,-207.599397,0.00013698,2]
[333855563,1722570638104,-367.43442542,0.00013698,2]
[333855564,1722570638114,-500.47758651,0.00013698,2]
[333855565,1722570638123,-500.0,0.00013698,2]
[333855566,1722570638133,-500.0,0.00013698,2]
[333855567,1722570638143,-500.0,0.00013698,2]
[333855568,1722570638152,-500.0,0.00013698,2]
[333855569,1722570638162,-500.0,0.00013698,2]
[333855570,1722570638172,-500.0,0.00013698,2]
[333855571,1722570638183,-500.0,0.00013698,2]
[333855572,1722570638193,-333.15787675,0.00013698,2]
[333855644,1722570639805,-175.52622036,0.00013698,2]
[333855646,1722570639815,-500.0,0.00013698,2]
[333855648,1722570639827,-500.0,0.00013698,2]
[333855650,1722570639838,-500.0,0.00013698,2]
[333855653,1722570639851,-151.0,0.00013698,2]
[333855655,1722570639861,-151.0,0.00013698,2]
[333855657,1722570639871,-151.0,0.00013698,2]
[333855659,1722570639881,-151.0,0.00013698,2]
[333855661,1722570639893,-151.0,0.00013698,2]
[333855663,1722570639905,-151.0,0.00013698,2]
[333855665,1722570639916,-500.0,0.00013698,2]
[333855667,1722570639927,-500.0,0.00013698,2]
[333855670,1722570639937,-500.0,0.00013698,2]
[333855672,1722570639947,-500.0,0.00013698,2]
[333855674,1722570639958,-500.0,0.00013698,2]
[333855676,1722570639970,-500.0,0.00013698,2]
[333855678,1722570639983,-500.0,0.00013698,2]
[333855680,1722570639995,-500.0,0.00013698,2]
[333855682,1722570640007,-500.0,0.00013698,2]
[333855684,1722570640017,-500.0,0.00013698,2]
[333855686,1722570640026,-500.0,0.00013698,2]
[333855699,1722570640146,-500.0,0.00013698,2]
[333855701,1722570640156,-500.0,0.00013698,2]
[333855703,1722570640166,-505.96505168,0.00013698,2]
[333855705,1722570640176,-151.0,0.00013698,2]
[333855707,1722570640185,-151.0,0.00013698,2]
[333855709,1722570640195,-151.0,0.00013698,2]
[333855711,1722570640205,-500.0,0.00013698,2]
[333855713,1722570640214,-151.0,0.00013698,2]
[333855715,1722570640224,-500.0,0.00013698,2]
[333855717,1722570640234,-500.0,0.00013698,2]
[333855719,1722570640244,-500.0,0.00013698,2]
[333855721,1722570640256,-500.0,0.00013698,2]
[333855723,1722570640266,-500.0,0.00013698,2]
[333855725,1722570640278,-500.0,0.00013698,2]
[333855728,1722570640289,-500.0,0.00013698,2]
[333855730,1722570640301,-500.0,0.00013698,2]
[333855731,1722570640310,-500.0,0.00013698,2]
[333855733,1722570640319,-500.0,0.00013698,2]
[333855735,1722570640328,-500.0,0.00013698,2]
[333855737,1722570640338,-500.0,0.00013698,2]
[333855739,1722570640348,-500.0,0.00013698,2]
[333855741,1722570640357,-500.0,0.00013698,2]
[333855743,1722570640366,-572.91164035,0.00013698,2]
[333855745,1722570640376,-500.0,0.00013698,2]
[333855747,1722570640387,-500.0,0.00013698,2]
[333855750,1722570640398,-500.0,0.00013698,2]
[333855752,1722570640409,-500.0,0.00013698,2]
[333855754,1722570640419,-500.0,0.00013698,2]
[333855756,1722570640429,-503.47351163,0.00013698,2]
[333855758,1722570640440,-500.0,0.00013698,2]
[333855760,1722570640450,-500.0,0.00013698,2]
[333855762,1722570640461,-500.0,0.00013698,2]
[333855763,1722570640470,-500.0,0.00013698,2]
[333855764,1722570640480,-500.0,0.00013698,2]
[333855765,1722570640491,-500.0,0.00013698,2]
[333855767,1722570640502,-500.0,0.00013698,2]
[333855769,1722570640511,-624.10497013,0.00013698,2]
[333855771,1722570640522,-500.0,0.00013698,2]
[333855773,1722570640531,-500.0,0.00013698,2]
[333855775,1722570640542,-500.0,0.00013698,2]
[333855777,1722570640552,-500.0,0.00013698,2]
[333855779,1722570640563,-520.16617658,0.00013698,2]
[333855781,1722570640574,-604.59,0.00013698,2]
[333855783,1722570640584,-326.40678039,0.00013698,2]
[333855785,1722570640594,-500.0,0.00013698,2]
[333855788,1722570640604,-502.19294622,0.00013698,2]
[333855790,1722570640615,-544.59273102,0.00013698,2]
[333855792,1722570640626,-616.11,0.00013698,2]
[333855794,1722570640636,-500.0,0.00013698,2]
[333855796,1722570640645,-500.0,0.00013698,2]
[333855798,1722570640655,-500.0,0.00013698,2]
[333855800,1722570640665,-500.0,0.00013698,2]
[333855802,1722570640675,-511.62053301,0.00013698,2]
[333855804,1722570640685,-500.0,0.00013698,2]
[333855806,1722570640696,-500.0,0.00013698,2]
[333855808,1722570640707,-500.0,0.00013698,2]
[333855810,1722570640717,-502.15834624,0.00013698,2]
[333855812,1722570640727,-500.0,0.00013698,2]
[333855813,1722570640738,-500.0,0.00013698,2]
[333855814,1722570640747,-638.26,0.00013698,2]
[333855815,1722570640757,-500.0,0.00013698,2]
[333855816,1722570640766,-500.0,0.00013698,2]
[333855817,1722570640776,-500.0,0.00013698,2]
[333855818,1722570640786,-500.0,0.00013698,2]
[333855819,1722570640795,-151.17609,0.00013698,2]
[333855821,1722570640805,-500.0,0.00013698,2]
[333855823,1722570640813,-500.0,0.00013698,2]
[333855825,1722570640823,-500.0,0.00013698,2]
[333855827,1722570640832,-503.52167179,0.00013698,2]
[333855829,1722570640842,-500.0,0.00013698,2]
[333855831,1722570640852,-340.30743383,0.00013698,2]
[333855833,1722570640861,-500.0,0.00013698,2]
[333855835,1722570640871,-500.0,0.00013698,2]
[333855837,1722570640881,-500.0,0.00013698,2]
[333855839,1722570640892,-478.69040576,0.00013698,2]
[333855840,1722570640902,-500.0,0.00013698,2]
[333855842,1722570640911,-658.21,0.00013698,2]
[333855844,1722570640921,-500.0,0.00013698,2]
[333855846,1722570640931,-500.0,0.00013698,2]
[333855847,1722570640941,-500.0,0.00013698,2]
[333855849,1722570640951,-306.21878943,0.00013698,2]
[333855851,1722570640961,-500.0,0.00013698,2]
[333855853,1722570640971,-362.87173715,0.00013698,2]
[333855855,1722570640984,-500.0,0.00013698,2]
[333855857,1722570640994,-514.78541862,0.00013698,2]
[333855859,1722570641004,-500.0,0.00013698,2]
[333855861,1722570641015,-500.0,0.00013698,2]
[333855863,1722570641025,-500.0,0.00013698,2]
[333855865,1722570641035,-502.71982295,0.00013698,2]
[333855867,1722570641045,-500.0,0.00013698,2]
[333855869,1722570641054,-500.0,0.00013698,2]
[333855871,1722570641066,-647.32,0.00013698,2]
[333855873,1722570641076,-1113.32,0.00013698,2]
[333855875,1722570641086,-639.14371831,0.00013698,2]
[333855877,1722570641095,-501.28423023,0.00013698,2]
[333855879,1722570641105,-500.0,0.00013698,2]
[333855881,1722570641114,-500.0,0.00013698,2]
[333855883,1722570641124,-252.55359026,0.00013698,2]
[333855885,1722570641134,-500.0,0.00013698,2]
[333855887,1722570641143,-501.12796701,0.00013698,2]
[333855889,1722570641153,-500.0,0.00013698,2]
[333855891,1722570641162,-500.0,0.00013698,2]
[333855893,1722570641172,-513.2362411,0.00013698,2]
[333855895,1722570641182,-500.0,0.00013698,2]
[333855897,1722570641192,-500.0,0.00013698,2]
[333855899,1722570641202,-500.0,0.00013698,2]
[333855901,1722570641212,-602.53,0.00013698,2]
[333855903,1722570641222,-500.0,0.00013698,2]
[333855905,1722570641232,-500.0,0.00013698,2]
[333855907,1722570641243,-500.0,0.00013698,2]
[333855909,1722570641253,-500.0,0.00013698,2]
[333855912,1722570641263,-608.18,0.00013698,2]
[333855914,1722570641273,-500.0,0.00013698,2]
[333855916,1722570641283,-503.45768716,0.00013698,2]
[333855918,1722570641293,-501.78099884,0.00013698,2]
[333855920,1722570641302,-346.43028648,0.00013698,2]
[333856000,1722570642752,-212.373,0.00013694,2]
[333856002,1722570642762,-153.56971352,0.00013698,2]
[333856004,1722570642771,-500.0,0.00013698,2]
[333856006,1722570642781,-501.82170068,0.00013698,2]
[333856008,1722570642791,-500.95327148,0.00013698,2]
[333856010,1722570642801,-56.87317608,0.00013698,2]
[333856137,1722570681894,321.75960662,9.999e-05,2]
[333856139,1722570711599,257.79481724,9.999e-05,2]
[333856140,1722570731783,5957.93352349,9.999e-05,2]
[333856141,1722570801588,171.86321149,9.999e-05,2]
[333856142,1722570865918,155.5402478,9.999e-05,2]
[333856143,1722570879602,154.74467129,9.999e-05,2]
[333856144,1722570963456,155.27963273,9.999e-05,2]
[333856145,1722570991608,154.74467129,9.999e-05,2]
[333856146,1722571006744,154.74467129,9.999e-05,2]
[333856147,1722571118414,154.74467129,9.999e-05,2]
[333856148,1722571219614,154.74467129,9.999e-05,2]
[333856150,1722571249612,154.74467129,9.999e-05,2]
[333856185,1722571831932,-918.11959889,0.00012591,2]
[333856381,1722571840649,-245.99594851,0.00012119,2]
[333856383,1722571840659,-443.66552821,0.00012591,2]
[333856385,1722571840669,-161.175653,0.00012986,2]
[333856387,1722571840680,-151.682,0.00013324,2]
[333856389,1722571840691,-515.021,0.00013324,2]
[333856391,1722571840702,-1410.0,0.00013324,2]
[333856393,1722571840711,-1004.55160415,0.00013491,2]
[333856395,1722571840721,-294.1746601,0.000135,2]
[333856397,1722571840731,-294.1746601,0.000135,2]
[333856400,1722571840741,-206.9081725,0.000135,2]
[333856402,1722571840751,-153.0,0.000135,2]
[333856403,1722571840760,-153.0,0.000135,2]
[333856406,1722571840770,-206.9081725,0.000135,2]
[333856408,1722571840780,-423.8504725,0.000135,2]
[333856410,1722571840790,-367.80729453,0.00013547,2]
[333856412,1722571840800,-1754.90944573,0.00013596,2]
[333856414,1722571840810,-178.10847711,0.00013598,2]
[333856416,1722571840821,-178.10847711,0.00013599,2]
[333856418,1722571840830,-178.10847711,0.00013599,2]
[333856420,1722571840839,-527.11184943,0.00013599,2]
[333856421,1722571840848,-153.0,0.000136,2]
[333856423,1722571840857,-294.1746601,0.000136,2]
[333856425,1722571840866,-5499.13,0.00013688,2]
[333856427,1722571840875,-48565.7046715,0.00013688,2]
[333856429,1722571840884,-2846.67377234,0.00013689,2]
[333856450,1722571841066,-2009.89669481,0.00013689,2]
[333856452,1722571841075,-2292.98726483,0.00013689,2]
[333856531,1722571846099,-2563.58320232,0.00013689,2]
[333856532,1722571846108,-216.015,0.00013694,2]
[333856533,1722571846118,-250.0,0.00013694,2]
[333856534,1722571846127,-5787.86299646,0.00013695,5]
[333856535,1722571846136,-86500.3128187,0.00013695,2]
[333856536,1722571846146,-5499.13,0.00013696,2]
[333856537,1722571846155,-5499.13,0.00013697,2]
[333856538,1722571846164,-5499.13,0.00013697,2]
[333856539,1722571846174,-5499.13,0.00013697,2]
[333856541,1722571846183,-5499.13,0.00013697,2]
[333856543,1722571846193,-5499.13,0.00013697,2]
[333856545,1722571846202,-5499.13,0.00013697,2]
[333856547,1722571846212,-5499.13,0.00013697,2]
[333856549,1722571846221,-5499.13,0.00013697,2]
[333856551,1722571846231,-5499.13,0.00013697,2]
[333856553,1722571846240,-151.0,0.00013697,2]
[333856555,1722571846250,-1258.394199,0.00013697,2]
[333856556,1722571846259,-1258.394199,0.00013697,2]
[333856557,1722571846268,-21084.83769411,0.00013698,5]
[333856560,1722571846278,-473.15964729,0.00013698,2]
[333856561,1722571846290,-500.0,0.00013698,2]
[333856563,1722571846299,-500.0,0.00013698,2]
[333856565,1722571846308,-500.0,0.00013698,2]
[333856567,1722571846317,-500.0,0.00013698,2]
[333856569,1722571846326,-500.0,0.00013698,2]
[333856571,1722571846336,-500.0,0.00013698,2]
[333856573,1722571846345,-500.0,0.00013698,2]
[333856575,1722571846358,-500.0,0.00013698,2]
[333856577,1722571846367,-500.0,0.00013698,2]
[333856579,1722571846377,-500.0,0.00013698,2]
[333856581,1722571846386,-500.0,0.00013698,2]
[333856583,1722571846396,-500.0,0.00013698,2]
[333856585,1722571846406,-151.0,0.00013698,2]
[333856587,1722571846415,-151.0,0.00013698,2]
[333856590,1722571846426,-152.701245,0.00013698,2]
[333856591,1722571846438,-506.46899637,0.00013698,2]
[333856593,1722571846448,-500.0,0.00013698,2]
[333856595,1722571846458,-195.42871971,0.00013698,2]
[333856597,1722571846467,-507.30253044,0.00013698,2]
[333856598,1722571846476,-500.0,0.00013698,2]
[333856599,1722571846486,-443.64344552,0.00013698,2]
[333856600,1722571846496,-507.56108772,0.00013698,2]
[333856601,1722571846505,-500.0,0.00013698,2]
[333856602,1722571846514,-500.0,0.00013698,2]
[333856603,1722571846524,-500.0,0.00013698,2]
[333856604,1722571846536,-500.0,0.00013698,2]
[333856605,1722571846545,-516.50584722,0.00013698,2]
[333856606,1722571846554,-500.0,0.00013698,2]
[333856607,1722571846563,-393.4080722,0.00013698,2]
[333856608,1722571846573,-500.0,0.00013698,2]
[333856609,1722571846582,-151.0,0.00013698,2]
[333856610,1722571846591,-151.0,0.00013698,2]
[333856611,1722571846600,-151.0,0.00013698,2]
[333856612,1722571846609,-151.0,0.00013698,2]
[333856613,1722571846619,-151.0,0.00013698,2]
[333856614,1722571846628,-151.0,0.00013698,2]
[333856615,1722571846637,-151.0,0.00013698,2]
[333856616,1722571846647,-151.0,0.00013698,2]
[333856617,1722571846656,-500.0,0.00013698,2]
[333856618,1722571846665,-500.0,0.00013698,2]
[333856619,1722571846674,-151.0,0.00013698,2]
[333856620,1722571846684,-295.693657,0.00013698,2]
[333856621,1722571846693,-500.0,0.00013698,2]
[333856622,1722571846702,-502.14850402,0.00013698,2]
[333856623,1722571846711,-500.0,0.00013698,2]
[333856624,1722571846720,-279.47735025,0.00013698,2]
[333856625,1722571846729,-204.26723054,0.00013698,2]
[333856626,1722571846738,-500.0,0.00013698,2]
[333856627,1722571846747,-500.0,0.00013698,2]
[333856628,1722571846756,-500.0,0.00013698,2]
[333856629,1722571846765,-227.63717965,0.00013698,2]
[333856630,1722571846775,-500.0,0.00013698,2]
[333856631,1722571846785,-500.0,0.00013698,2]
[333856632,1722571846795,-500.0,0.00013698,2]
[333856633,1722571846805,-500.0,0.00013698,2]
[333856634,1722571846814,-500.0,0.00013698,2]
[333856635,1722571846823,-500.0,0.00013698,2]
[333856636,1722571846832,-500.0,0.00013698,2]
[333856637,1722571846841,-500.0,0.00013698,2]
[333856638,1722571846850,-500.0,0.00013698,2]
[333856639,1722571846859,-541.85518101,0.00013698,2]
[333856640,1722571846869,-500.0,0.00013698,2]
[333856641,1722571846878,-500.0,0.00013698,2]
[333856642,1722571846887,-505.12273513,0.00013698,2]
[333856643,1722571846896,-500.0,0.00013698,2]
[333856644,1722571846905,-500.0,0.00013698,2]
[333856645,1722571846915,-500.0,0.00013698,2]
[333856646,1722571846924,-404.62002121,0.00013698,2]
[333856647,1722571846934,-589.83209123,0.00013698,2]
[333856648,1722571846943,-500.0,0.00013698,2]
[333856649,1722571846952,-504.06275825,0.00013698,2]
[333856650,1722571846962,-510.51552027,0.00013698,2]
[333856651,1722571846971,-500.0,0.00013698,2]
[333856652,1722571846980,-500.0,0.00013698,2]
[333856653,1722571846990,-500.0,0.00013698,2]
[333856654,1722571846999,-500.0,0.00013698,2]
[333856655,1722571847008,-346.65870393,0.00013698,2]
[333856656,1722571847017,-500.0,0.00013698,2]
[333856657,1722571847026,-500.0,0.00013698,2]
[333856658,1722571847038,-500.0,0.00013698,2]
[333856659,1722571847048,-500.0,0.00013698,2]
[333856660,1722571847058,-500.0,0.00013698,2]
[333856661,1722571847068,-500.0,0.00013698,2]
[333856662,1722571847077,-500.0,0.00013698,2]
[333856663,1722571847086,-500.0,0.00013698,2]
[333856664,1722571847096,-252.26073623,0.00013698,2]
[333856665,1722571847106,-519.06152323,0.00013698,2]
[333856666,1722571847115,-500.0,0.00013698,2]
[333856667,1722571847124,-500.0,0.00013698,2]
[333856668,1722571847134,-151.0,0.00013698,2]
[333856669,1722571847143,-151.0,0.00013698,2]
[333856670,1722571847152,-500.0,0.00013698,2]
[333856671,1722571847161,-158.851484,0.00013698,2]
[333856672,1722571847171,-504.86207835,0.00013698,2]
[333856673,1722571847180,-500.0,0.00013698,2]
[333856674,1722571847190,-500.0,0.00013698,2]
[333856675,1722571847199,-500.0,0.00013698,2]
[333856676,1722571847208,-500.0,0.00013698,2]
[333856677,1722571847218,-500.0,0.00013698,2]
[333856678,1722571847229,-475.60628926,0.00013698,2]
[333856679,1722571847238,-511.70440348,0.00013698,2]
[333856680,1722571847248,-500.0,0.00013698,2]
[333856681,1722571847258,-151.0,0.00013698,2]
[333856682,1722571847267,-151.0,0.00013698,2]
[333856683,1722571847277,-288.721701,0.00013698,2]
[333856684,1722571847294,-500.0,0.00013698,2]
[333856685,1722571847379,-511.53197549,0.00013698,2]
[333856686,1722571847389,-521.86392812,0.00013698,2]
[333856687,1722571847402,-500.0,0.00013698,2]
[333856688,1722571847412,-504.55832468,0.00013698,2]
[333856689,1722571847421,-502.40932546,0.00013698,2]
[333856690,1722571847434,-500.0,0.00013698,2]
[333856691,1722571847444,-500.0,0.00013698,2]
[333856692,1722571847453,-500.0,0.00013698,2]
[333856693,1722571847463,-500.0,0.00013698,2]
[333856694,1722571847473,-500.0,0.00013698,2]
[333856695,1722571847482,-340.30743383,0.00013698,2]
[333856696,1722571847492,-500.0,0.00013698,2]
[333856697,1722571847501,-500.0,0.00013698,2]
[333856698,1722571847510,-507.69624074,0.00013698,2]
[333856699,1722571847520,-771.73,0.00013698,2]
[333856700,1722571847531,-500.0,0.00013698,2]
[333856701,1722571847540,-500.0,0.00013698,2]
[333856702,1722571847550,-500.0,0.00013698,2]
[333856703,1722571847559,-500.0,0.00013698,2]
[333856704,1722571847569,-500.0,0.00013698,2]
[333856705,1722571847578,-500.0,0.00013698,2]
[333856706,1722571847587,-500.0,0.00013698,2]
[333856707,1722571847596,-500.0,0.00013698,2]
[333856708,1722571847606,-500.0,0.00013698,2]
[333856709,1722571847615,-500.0,0.00013698,2]
[333856710,1722571847624,-500.0,0.00013698,2]
[333856711,1722571847634,-500.0,0.00013698,2]
[333856712,1722571847643,-500.0,0.00013698,2]
[333856713,1722571847653,-500.0,0.00013698,2]
[333856714,1722571847662,-514.78541862,0.00013698,2]
[333856715,1722571847671,-524.41683795,0.00013698,2]
[333856716,1722571847681,-508.48471962,0.00013698,2]
[333856717,1722571847690,-500.0,0.00013698,2]
[333856718,1722571847700,-500.0,0.00013698,2]
[333856719,1722571847709,-151.0,0.00013698,2]
[333856720,1722571847718,-151.0,0.00013698,2]
[333856721,1722571847727,-151.0,0.00013698,2]
[333856722,1722571847737,-189.183826,0.00013698,2]
[333856723,1722571847746,-500.0,0.00013698,2]
[333856724,1722571847755,-500.0,0.00013698,2]
[333856725,1722571847764,-500.0,0.00013698,2]
[333856726,1722571847774,-500.0,0.00013698,2]
[333856727,1722571847785,-396.544298,0.00013698,2]
[333856728,1722571847795,-506.12899466,0.00013698,2]
[333856729,1722571847805,-396.544298,0.00013698,2]
[333856730,1722571847814,-500.0,0.00013698,2]
[333856731,1722571847823,-396.544298,0.00013698,2]
[333856732,1722571847833,-396.544298,0.00013698,2]
[333856733,1722571847842,-396.544298,0.00013698,2]
[333856734,1722571847851,-518.25572952,0.00013698,2]
[333856735,1722571847860,-396.544298,0.00013698,2]
[333856736,1722571847870,-396.544298,0.00013698,2]
[333856737,1722571847880,-396.544298,0.00013698,2]
[333856738,1722571847889,-501.12796701,0.00013698,2]
[333856739,1722571847899,-396.544298,0.00013698,2]
[333856740,1722571847909,-396.544298,0.00013698,2]
[333856741,1722571847919,-396.544298,0.00013698,2]
[333856742,1722571847931,-396.544298,0.00013698,2]
[333856743,1722571847943,-396.544298,0.00013698,2]
[333856744,1722571847953,-396.544298,0.00013698,2]
[333856745,1722571847964,-396.544298,0.00013698,2]
[333856746,1722571847976,-513.2362411,0.00013698,2]
[333856747,1722571847987,-396.544298,0.00013698,2]
[333856748,1722571847998,-396.544298,0.00013698,2]
[333856749,1722571848008,-396.544298,0.00013698,2]
[333856750,1722571848018,-500.0,0.00013698,2]
[333856751,1722571848028,-396.544298,0.00013698,2]
[333856752,1722571848038,-396.544298,0.00013698,2]
[333856753,1722571848048,-500.0,0.00013698,2]
[333856754,1722571848057,-500.0,0.00013698,2]
[333856755,1722571848068,-500.0,0.00013698,2]
[333856756,1722571848077,-500.0,0.00013698,2]
[333856757,1722571848087,-500.0,0.00013698,2]
[333856758,1722571848096,-500.0,0.00013698,2]
[333856759,1722571848107,-500.0,0.00013698,2]
[333856760,1722571848117,-501.78099884,0.00013698,2]
[333856761,1722571848127,-500.0,0.00013698,2]
[333856762,1722571848136,-503.6892054,0.00013698,2]
[333856763,1722571848146,-500.0,0.00013698,2]
[333856764,1722571848157,-500.0,0.00013698,2]
[333856765,1722571848166,-177.27921538,0.00013698,2]
[333856766,1722571848176,-500.0,0.00013698,2]
[333856767,1722571848184,-502.27634728,0.00013698,2]
[333856768,1722571848195,-500.0,0.00013698,2]
[333856769,1722571848205,-500.0,0.00013698,2]
[333856770,1722571848216,-500.0,0.00013698,2]
[333856771,1722571848227,-500.0,0.00013698,2]
[333856772,1722571848238,-500.0,0.00013698,2]
[333856773,1722571848247,-187.18123502,0.00013698,2]
[333856774,1722571848258,-606.22994143,0.00013698,2]
[333856775,1722571848267,-151.0,0.00013698,2]
[333856776,1722571848277,-645.47521234,0.00013698,2]
[333856777,1722571848288,-500.0,0.00013698,2]
[333856778,1722571848297,-500.0,0.00013698,2]
[333856779,1722571848305,-500.0,0.00013698,2]
[333856780,1722571848314,-500.0,0.00013698,2]
[333856781,1722571848325,-500.0,0.00013698,2]
[333856782,1722571848335,-516.09612065,0.00013698,2]
[333856783,1722571848345,-500.0,0.00013698,2]
[333856784,1722571848364,-500.0,0.00013698,2]
[333856785,1722571848374,-500.0,0.00013698,2]
[333856786,1722571848384,-500.0,0.00013698,2]
[333856787,1722571848397,-500.0,0.00013698,2]
[333856788,1722571848417,-572.91164035,0.00013698,2]
[333856789,1722571848436,-500.0,0.00013698,2]
[333856790,1722571848447,-521.17230186,0.00013698,2]
[333856791,1722571848458,-500.0,0.00013698,2]
[333856792,1722571848468,-151.0,0.00013698,2]
[333856793,1722571848479,-160.952147,0.00013698,2]
[333856794,1722571848489,-500.0,0.00013698,2]
[333856795,1722571848498,-584.03278788,0.00013698,2]
[333856796,1722571848508,-500.0,0.00013698,2]
[333856797,1722571848518,-792.09,0.00013698,2]
[333856798,1722571848527,-500.0,0.00013698,2]
[333856799,1722571848541,-500.0,0.00013698,2]
[333856800,1722571848551,-500.0,0.00013698,2]
[333856801,1722571848560,-500.0,0.00013698,2]
[333856802,1722571848570,-500.0,0.00013698,2]
[333856803,1722571848580,-410.73128566,0.00013698,2]
[333856804,1722571848590,-500.0,0.00013698,2]
[333856805,1722571848599,-521.98,0.00013698,2]
[333856806,1722571848610,-565.85,0.00013698,2]
[333856807,1722571848622,-500.0,0.00013698,2]
[333856808,1722571848633,-500.0,0.00013698,2]
[333856809,1722571848642,-500.0,0.00013698,2]
[333856810,1722571848651,-500.0,0.00013698,2]
[333856811,1722571848661,-500.0,0.00013698,2]
[333856812,1722571848671,-503.21491463,0.00013698,2]
[333856813,1722571848681,-500.0,0.00013698,2]
[333856814,1722571848690,-500.0,0.00013698,2]
[333856815,1722571848699,-500.0,0.00013698,2]
[333856816,1722571848709,-500.0,0.00013698,2]
[333856817,1722571848718,-500.0,0.00013698,2]
[333856818,1722571848728,-500.0,0.00013698,2]
[333856819,1722571848738,-500.0,0.00013698,2]
[333856820,1722571848748,-500.0,0.00013698,2]
[333856821,1722571848758,-528.85755404,0.00013698,2]
[333856822,1722571848768,-253.350269,0.00013698,2]
[333856823,1722571848777,-253.350269,0.00013698,2]
[333856824,1722571848788,-253.350269,0.00013698,2]
[333856825,1722571848798,-500.0,0.00013698,2]
[333856826,1722571848808,-253.350269,0.00013698,2]
[333856827,1722571848817,-500.0,0.00013698,2]